bitfinex/quotes_BTCUSD_20240703
["timestamp","ask_amount","ask_price","bid_price","bid_amount"]
[1720031182941,1.38783675,60451.0,60450.0,0.001]
[1720031183146,1.158017,60448.0,60447.0,0.2388]
[1720031183380,1.27728265,60448.0,60447.0,0.2388]
[1720031184537,1.27828265,60448.0,60447.0,0.2388]
[1720031185204,1.27828265,60448.0,60447.0,0.28404722]
[1720031186079,0.87152065,60448.0,60447.0,0.28404722]
[1720031186277,0.94742065,60448.0,60447.0,0.28404722]
[1720031186843,0.94749337,60448.0,60447.0,0.28404722]
[1720031188413,0.55104753,60448.0,60447.0,0.44434602]
[1720031190046,0.55104753,60448.0,60447.0,0.51061702]
[1720031190215,0.55128839,60448.0,60447.0,0.51061702]
[1720031193498,0.497293,60448.0,60447.0,0.51061702]
[1720031193697,0.55160744,60448.0,60447.0,0.51061702]
[1720031193905,0.497293,60448.0,60447.0,0.51061702]
[1720031194112,0.55160744,60448.0,60447.0,0.51061702]
[1720031198031,0.497293,60448.0,60447.0,0.51061702]
[1720031198346,0.55172531,60448.0,60447.0,0.51061702]
[1720031199868,0.497293,60448.0,60447.0,0.51061702]
[1720031200226,0.50760888,60448.0,60447.0,0.51061702]
[1720031200429,0.55173695,60448.0,60447.0,0.51061702]
[1720031202707,0.497293,60448.0,60447.0,0.51061702]
[1720031205104,0.001,60448.0,60447.0,0.51061702]
[1720031205311,0.166431,60448.0,60447.0,0.51061702]
[1720031205527,0.497293,60448.0,60447.0,0.51061702]
[1720031205734,0.166431,60448.0,60447.0,0.51061702]
[1720031208951,0.167271,60448.0,60447.0,0.51061702]
[1720031209945,0.00184,60448.0,60447.0,0.51061702]
[1720031211988,0.167271,60448.0,60447.0,0.51061702]
[1720031215380,0.00184,60448.0,60447.0,0.51061702]
[1720031217080,0.01215507,60448.0,60447.0,0.51061702]
[1720031217505,0.00184,60448.0,60447.0,0.51061702]
[1720031217716,0.01215506,60448.0,60447.0,0.51061702]
[1720031220482,0.05586284,60448.0,60447.0,0.51061702]
[1720031220724,0.00184,60448.0,60447.0,0.51061702]
[1720031220871,0.01215508,60448.0,60447.0,0.51061702]
[1720031221289,0.05586274,60448.0,60447.0,0.51061702]
[1720031222288,0.01215508,60448.0,60447.0,0.51061702]
[1720031222535,0.05581025,60448.0,60447.0,0.51061702]
[1720031223788,0.00184,60448.0,60447.0,0.51061702]
[1720031223998,0.05578045,60448.0,60447.0,0.51061702]
[1720031224209,0.00184,60448.0,60447.0,0.51061702]
[1720031224394,0.05578045,60448.0,60447.0,0.51061702]
[1720031225381,0.01215508,60448.0,60447.0,0.70605102]
[1720031225603,0.01215508,60448.0,60447.0,1.13581902]
[1720031226372,0.00084,60448.0,60447.0,1.13581902]
[1720031226798,0.00184,60448.0,60447.0,1.14481902]
[1720031227194,0.00184,60448.0,60447.0,2.10655502]
[1720031227392,0.00284,60448.0,60447.0,2.11755502]
[1720031228217,0.00184,60448.0,60447.0,2.40645502]
[1720031228621,0.00284,60448.0,60447.0,2.42045502]
[1720031228881,0.00184,60448.0,60447.0,2.41145502]
[1720031229242,0.00184,60448.0,60447.0,2.42545502]
[1720031230236,0.00184,60448.0,60447.0,2.12545502]
[1720031230932,0.00184,60448.0,60447.0,2.42545502]
[1720031231979,0.00184,60448.0,60447.0,2.12545502]
[1720031232991,0.00184,60448.0,60447.0,2.42545502]
[1720031235108,0.00184,60448.0,60447.0,2.42206265]
[1720031237994,0.00184,60448.0,60447.0,0.80655865]
[1720031238172,0.00184,60448.0,60447.0,1.76819465]
[1720031238370,0.00184,60448.0,60447.0,2.09906265]
[1720031239172,0.00184,60448.0,60447.0,2.12206265]
[1720031240369,0.43161,60463.0,60462.0,0.04524722]
[1720031240545,0.597,60463.0,60462.0,0.20554602]
[1720031241165,0.597,60463.0,60462.0,0.27180002]
[1720031242735,0.10183,60463.0,60462.0,0.27180002]
[1720031242982,0.16722,60463.0,60462.0,0.27180002]
[1720031244454,0.00183,60463.0,60462.0,0.80729302]
[1720031244787,0.00183,60463.0,60462.0,1.13807902]
[1720031244993,0.00183,60463.0,60462.0,0.80424354]
[1720031245198,0.00183,60463.0,60462.0,0.69834354]
[1720031245399,0.00183,60463.0,60462.0,0.72834354]
[1720031245989,0.00083,60463.0,60462.0,0.73834354]
[1720031246404,0.00183,60463.0,60462.0,0.73834354]
[1720031246805,0.00083,60463.0,60462.0,0.73834354]
[1720031247770,0.00083,60463.0,60462.0,0.74634354]
[1720031248100,0.00083,60463.0,60462.0,0.82224354]
[1720031248829,0.00083,60463.0,60462.0,0.74634354]
[1720031249248,0.00083,60463.0,60462.0,0.82224354]
[1720031250930,0.00083,60463.0,60462.0,1.15302954]
[1720031251139,0.00083,60463.0,60462.0,1.81460154]
[1720031251344,0.00083,60463.0,60462.0,2.41450154]
[1720031252605,0.00083,60463.0,60462.0,2.40650154]
[1720031252806,0.00083,60463.0,60462.0,2.42050154]
[1720031253210,0.00083,60463.0,60462.0,2.41050154]
[1720031253589,0.00083,60463.0,60462.0,2.39650154]
[1720031253971,0.00083,60463.0,60462.0,2.41050154]
[1720031254174,0.07673,60463.0,60462.0,0.28275054]
[1720031254377,0.07673,60463.0,60462.0,0.2405528]
[1720031254378,0.24212,60463.0,60462.0,0.2405528]
[1720031254582,0.24212,60463.0,60462.0,0.2545528]
[1720031254928,0.16622,60463.0,60462.0,0.2405528]
[1720031255437,0.497,60463.0,60462.0,0.2405528]
[1720031255744,0.16622,60463.0,60462.0,0.28275054]
[1720031256060,0.16622,60463.0,60462.0,0.26875054]
[1720031256473,0.16622,60463.0,60462.0,0.27875054]
[1720031257056,0.16622,60463.0,60462.0,0.28275054]
[1720031257176,0.16622,60463.0,60462.0,0.26875054]
[1720031257376,0.497,60463.0,60462.0,0.26875054]
[1720031257605,0.497,60463.0,60462.0,0.28675054]
[1720031258666,0.00083,60463.0,60462.0,1.02997931]
[1720031258819,0.00083,60463.0,60462.0,1.15887931]
[1720031260457,0.00083,60463.0,60462.0,1.12887931]
[1720031260659,0.00083,60463.0,60462.0,1.15887931]
[1720031261038,0.00083,60463.0,60462.0,1.78956531]
[1720031261374,0.00083,60463.0,60462.0,2.12035131]
[1720031262177,0.00083,60463.0,60462.0,2.10235131]
[1720031262570,0.00083,60463.0,60462.0,2.11635131]
[1720031262939,0.00083,60463.0,60462.0,2.04045131]
[1720031263240,0.00083,60463.0,60462.0,2.11635131]
[1720031264051,0.00083,60463.0,60462.0,2.13035131]
[1720031264266,0.00083,60463.0,60462.0,1.72366531]
[1720031264471,0.00083,60463.0,60462.0,1.49966531]
[1720031264662,0.00083,60463.0,60462.0,1.16887931]
[1720031265299,0.00083,60463.0,60462.0,1.09297931]
[1720031265493,0.00083,60463.0,60462.0,1.16887931]
[1720031267628,0.00083,60463.0,60462.0,1.49966531]
[1720031268264,0.00083,60463.0,60462.0,2.09956531]
[1720031268463,0.00083,60463.0,60462.0,2.43035131]
[1720031269891,0.00083,60463.0,60462.0,2.13035131]
[1720031270067,0.00083,60463.0,60462.0,2.43035131]
[1720031274203,0.00083,60463.0,60462.0,2.35445131]
[1720031274408,0.00083,60463.0,60462.0,2.43035131]
[1720031274614,0.00083,60463.0,60462.0,2.79432731]
[1720031275593,0.00083,60463.0,60462.0,2.78032731]
[1720031275792,0.00083,60463.0,60462.0,2.76632731]
[1720031276009,0.00083,60463.0,60462.0,2.78032731]
[1720031276210,0.00083,60463.0,60462.0,2.79432731]
[1720031278277,0.00083,60463.0,60462.0,2.79524031]
[1720031278696,0.00083,60463.0,60462.0,3.19479031]
[1720031278931,0.00083,60463.0,60462.0,3.24421942]
[1720031279134,0.00083,60463.0,60462.0,3.19479031]
[1720031279698,0.72460814,60484.0,60483.0,0.02585052]
[1720031279902,0.88994014,60484.0,60483.0,0.20249654]
[1720031280101,0.495999,60484.0,60483.0,0.20249654]
[1720031280925,0.571899,60484.0,60483.0,0.20249654]
[1720031281337,0.495999,60484.0,60483.0,0.20249654]
[1720031281776,1.495999,60484.0,60483.0,0.20249654]
[1720031282223,1.495999,60484.0,60483.0,0.20549654]
[1720031282752,1.826666,60484.0,60483.0,0.1632988]
[1720031282921,1.826666,60484.0,60483.0,0.20549654]
[1720031283369,1.0,60484.0,60483.0,0.20549654]
[1720031283572,1.0,60484.0,60483.0,0.40083154]
[1720031283776,1.0,60484.0,60483.0,1.46097354]
[1720031284007,1.0,60484.0,60483.0,1.70247354]
[1720031284459,1.0,60484.0,60483.0,1.70147354]
[1720031284932,1.0,60484.0,60483.0,1.70047354]
[1720031285407,1.0,60484.0,60483.0,1.70947354]
[1720031285617,1.0,60484.0,60483.0,1.71347354]
[1720031285827,1.0,60484.0,60483.0,1.72747354]
[1720031286044,1.0,60484.0,60483.0,1.65157354]
[1720031286463,1.0,60484.0,60483.0,1.72747354]
[1720031286629,1.0,60484.0,60483.0,1.73575354]
[1720031291178,1.0,60484.0,60483.0,2.06642454]
[1720031291312,1.0,60484.0,60483.0,1.73575354]
[1720031291514,1.0,60484.0,60483.0,2.06642454]
[1720031292012,1.0,60484.0,60483.0,2.89961454]
[1720031293018,1.0,60484.0,60483.0,2.87161454]
[1720031293233,1.0,60484.0,60483.0,2.88561454]
[1720031293426,1.0,60484.0,60483.0,3.09961454]
[1720031293628,1.0,60484.0,60483.0,3.19916454]
[1720031293829,1.0,60484.0,60483.0,3.01256454]
[1720031294198,1.0,60484.0,60483.0,3.33268181]
[1720031296334,1.0,60484.0,60483.0,3.30468181]
[1720031296535,1.0,60484.0,60483.0,3.31868181]
[1720031296666,1.0,60484.0,60483.0,2.60246081]
[1720031296869,1.0,60484.0,60483.0,2.41316081]
[1720031297065,1.0,60484.0,60483.0,1.38248981]
[1720031297442,1.0,60484.0,60483.0,1.58248981]
[1720031298305,1.0,60484.0,60483.0,1.56848981]
[1720031299501,1.0,60484.0,60483.0,1.58248981]
[1720031300875,1.0,60484.0,60483.0,0.1965788]
[1720031300876,2.494192,60484.0,60483.0,0.1965788]
[1720031301086,2.80646407,60484.0,60483.0,0.1965788]
[1720031301294,2.81061355,60484.0,60483.0,0.1965788]
[1720031301851,2.81061355,60484.0,60483.0,0.1685788]
[1720031302052,2.81161355,60484.0,60483.0,0.1695788]
[1720031302451,2.78964148,60484.0,60483.0,0.1705788]
[1720031302651,2.812665,60484.0,60483.0,0.1705788]
[1720031302855,2.811665,60484.0,60483.0,0.1695788]
[1720031303526,2.811665,60484.0,60483.0,0.1685788]
[1720031303872,2.812665,60484.0,60483.0,0.1685788]
[1720031304684,2.814665,60484.0,60483.0,0.1695788]
[1720031305086,2.812665,60484.0,60483.0,0.00828]
[1720031305291,3.14333,60484.0,60483.0,0.00828]
[1720031305669,3.14633,60484.0,60483.0,0.00828]
[1720031305871,3.14629035,60484.0,60483.0,0.00828]
[1720031306071,3.14629035,60484.0,60483.0,0.00208]
[1720031306072,3.44129035,60484.0,60483.0,0.00208]
[1720031306273,4.04395535,60484.0,60483.0,0.00208]
[1720031306481,4.04395535,60484.0,60483.0,0.00308]
[1720031306482,4.04895535,60484.0,60483.0,0.00308]
[1720031306842,4.12016392,60484.0,60483.0,0.00308]
[1720031307308,4.11716392,60484.0,60483.0,0.00308]
[1720031307553,1.488411,60467.0,60466.0,1.233124]
[1720031307758,1.488411,60467.0,60466.0,0.1602988]
[1720031308171,2.488411,60467.0,60466.0,0.1602988]
[1720031309047,2.488411,60467.0,60466.0,0.1702988]
[1720031309458,2.488411,60467.0,60466.0,0.1822988]
[1720031310894,2.488411,60467.0,60466.0,0.1832118]
[1720031313305,2.488311,60467.0,60466.0,0.18236043]
[1720031313733,2.488211,60467.0,60466.0,0.18236043]
[1720031315177,2.157453,60467.0,60466.0,0.22455817]
[1720031315376,2.157453,60467.0,60466.0,0.18236043]
[1720031315800,2.157453,60467.0,60466.0,0.22455817]
[1720031317485,2.157353,60467.0,60466.0,0.22455817]
[1720031318038,2.157253,60467.0,60466.0,0.18236043]
[1720031318241,2.157153,60467.0,60466.0,0.18236043]
[1720031320980,2.157153,60467.0,60466.0,0.22455817]
[1720031321176,2.157153,60467.0,60466.0,0.18236043]
[1720031321418,2.157053,60467.0,60466.0,0.22455817]
[1720031321618,2.157053,60467.0,60466.0,0.22465817]
[1720031327296,2.157153,60467.0,60466.0,0.22465817]
[1720031327697,2.157153,60467.0,60466.0,0.22475817]
[1720031329966,2.232953,60467.0,60466.0,0.22475817]
[1720031331222,2.25729103,60467.0,60466.0,0.22475817]
[1720031331418,2.232953,60467.0,60466.0,0.22475817]
[1720031332312,2.25730164,60467.0,60466.0,0.22475817]
[1720031333704,1.0001,60467.0,60466.0,0.47615817]
[1720031333924,1.0001,60467.0,60466.0,0.52915817]
[1720031334203,1.0001,60467.0,60466.0,0.56232817]
[1720031335228,1.0001,60467.0,60466.0,0.54032817]
[1720031335428,1.0001,60467.0,60466.0,0.55432817]
[1720031335623,1.0001,60467.0,60466.0,0.56832817]
[1720031335826,1.0001,60467.0,60466.0,0.55432817]
[1720031336055,1.0001,60467.0,60466.0,0.54032817]
[1720031336286,1.0001,60467.0,60466.0,0.56832817]
[1720031336480,1.0001,60467.0,60466.0,0.53832817]
[1720031340218,1.0001,60467.0,60466.0,0.73371017]
[1720031343417,1.0001,60467.0,60466.0,0.73062891]
[1720031345355,0.67571546,60467.0,60466.0,0.73062891]
[1720031346264,0.67654546,60467.0,60466.0,0.73062891]
[1720031348459,0.67654546,60467.0,60466.0,1.06139291]
[1720031350034,0.67654546,60467.0,60466.0,0.56524691]
[1720031350272,0.67654546,60467.0,60466.0,0.25067691]
[1720031350441,0.84192446,60467.0,60466.0,0.25067691]
[1720031351464,0.84192446,60467.0,60466.0,0.23667691]
[1720031351794,1.17268246,60467.0,60466.0,0.25067691]
[1720031352635,1.17268246,60467.0,60466.0,0.23667691]
[1720031352835,1.17268246,60467.0,60466.0,0.25067691]
[1720031353686,1.50344046,60467.0,60466.0,0.25067691]
[1720031357585,1.50344046,60467.0,60466.0,0.23667691]
[1720031357993,1.50344046,60467.0,60466.0,0.25067691]
[1720031358976,1.50344046,60467.0,60466.0,0.23667691]
[1720031359183,1.50344046,60467.0,60466.0,0.25067691]
[1720031377559,1.50344046,60467.0,60466.0,0.23667691]
[1720031378258,1.50344046,60467.0,60466.0,0.22267691]
[1720031379342,1.90999846,60467.0,60466.0,0.18047917]
[1720031379547,1.93354145,60467.0,60466.0,0.17147917]
[1720031380123,1.93354145,60467.0,60466.0,0.15747917]
[1720031380325,1.93354145,60467.0,60466.0,0.16747917]
[1720031380559,1.93354145,60467.0,60466.0,0.18147917]
[1720031380752,1.93359902,60467.0,60466.0,0.22367691]
[1720031380977,1.85779902,60467.0,60466.0,0.19967691]
[1720031381291,1.93359902,60467.0,60466.0,0.20967691]
[1720031381705,1.93359902,60467.0,60466.0,0.22167691]
[1720031383873,1.90999846,60467.0,60466.0,0.22167691]
[1720031384110,1.93327518,60467.0,60466.0,0.22167691]
[1720031384931,1.93326089,60467.0,60466.0,0.22167691]
[1720031385124,1.93326089,60467.0,60466.0,0.17947917]
[1720031385441,1.93326089,60467.0,60466.0,0.22167691]
[1720031386797,1.85746089,60467.0,60466.0,0.46927691]
[1720031388336,1.52670289,60467.0,60466.0,0.46927691]
[1720031388511,1.17268246,60467.0,60466.0,0.49227691]
[1720031389070,0.84192446,60467.0,60466.0,0.49227691]
[1720031394810,0.67654546,60467.0,60466.0,0.49227691]
[1720031395057,0.67654546,60467.0,60466.0,0.52227691]
[1720031396066,0.67654546,60467.0,60466.0,0.49227691]
[1720031398980,0.84192446,60467.0,60466.0,0.49227691]
[1720031399197,1.50344046,60467.0,60466.0,0.24467691]
[1720031401744,1.17268246,60467.0,60466.0,0.24467691]
[1720031401951,1.50344046,60467.0,60466.0,0.24467691]
[1720031402987,1.50344046,60467.0,60466.0,0.20247917]
[1720031403232,1.57924046,60467.0,60466.0,0.20247917]
[1720031403444,1.93318208,60467.0,60466.0,0.20247917]
[1720031403853,1.93318333,60467.0,60466.0,0.20247917]
[1720031405416,1.93733281,60467.0,60466.0,0.17947917]
[1720031405613,1.93318333,60467.0,60466.0,0.17947917]
[1720031405862,1.93733281,60467.0,60466.0,0.17947917]
[1720031406036,2.26809081,60467.0,60466.0,0.17947917]
[1720031406597,2.26809081,60467.0,60466.0,0.15747917]
[1720031407039,2.27009081,60467.0,60466.0,0.15747917]
[1720031407246,1.85938333,60467.0,60466.0,0.15747917]
[1720031407574,1.93318333,60467.0,60466.0,0.15747917]
[1720031408851,1.93328333,60467.0,60466.0,0.15747917]
[1720031409261,1.93328333,60467.0,60466.0,0.19967691]
[1720031409659,1.94847934,60467.0,60466.0,0.19967691]
[1720031409866,1.95047934,60467.0,60466.0,0.19967691]
[1720031412812,1.91209846,60467.0,60466.0,0.19967691]
[1720031413016,1.95045422,60467.0,60466.0,0.19967691]
[1720031413615,1.95045422,60467.0,60466.0,0.15747917]
[1720031416416,1.95064256,60467.0,60466.0,0.15747917]
[1720031416905,1.95064262,60467.0,60466.0,0.15747917]
[1720031421038,1.54408462,60467.0,60466.0,0.43507691]
[1720031422889,1.54369743,60467.0,60466.0,0.43507691]
[1720031424409,1.54369743,60467.0,60466.0,0.39287917]
[1720031424655,1.54369743,60467.0,60466.0,0.15747917]
[1720031425642,1.87445543,60467.0,60466.0,0.15747917]
[1720031426094,1.87860283,60467.0,60466.0,0.15747917]
[1720031426305,1.88891562,60467.0,60466.0,0.15747917]
[1720031429446,1.83629846,60467.0,60466.0,0.15747917]
[1720031429677,1.88884118,60467.0,60466.0,0.15747917]
[1720031429864,1.83629846,60467.0,60466.0,0.15747917]
[1720031430086,1.88884118,60467.0,60466.0,0.15747917]
[1720031432626,1.83629846,60467.0,60466.0,0.15747917]
[1720031432849,1.88890456,60467.0,60466.0,0.15747917]
[1720031435981,1.88896566,60467.0,60466.0,0.15747917]
[1720031437314,1.96476566,60467.0,60466.0,0.15747917]
[1720031438796,1.65759449,60467.0,60466.0,0.15747917]
[1720031439486,1.65805514,60467.0,60466.0,0.41547691]
[1720031440522,1.58225514,60467.0,60466.0,0.41547691]
[1720031441662,1.25149714,60467.0,60466.0,0.41547691]
[1720031442331,1.25149714,60467.0,60466.0,0.42137691]
[1720031442738,1.19836929,60467.0,60466.0,0.42137691]
[1720031442952,1.2514573,60467.0,60466.0,0.42137691]
[1720031443158,1.19836929,60467.0,60466.0,0.42137691]
[1720031443370,0.40733796,60467.0,60466.0,0.44437691]
[1720031443568,0.36947429,60467.0,60466.0,0.44437691]
[1720031444027,0.36947429,60467.0,60466.0,1.37708691]
[1720031444233,0.36947429,60467.0,60466.0,2.30775091]
[1720031444447,0.00103,60467.0,60466.0,2.87168491]
[1720031444652,0.48176494,60484.0,60483.0,0.26339774]
[1720031444863,0.00083,60484.0,60483.0,0.71783154]
[1720031445037,0.00083,60484.0,60483.0,1.04850254]
[1720031445315,0.00083,60484.0,60483.0,2.04291454]
[1720031445524,0.00083,60484.0,60483.0,0.94270254]
[1720031445945,0.00083,60484.0,60483.0,0.97270254]
[1720031446147,0.00083,60484.0,60483.0,0.98670254]
[1720031446365,0.00083,60484.0,60483.0,0.97070254]
[1720031446566,0.00083,60484.0,60483.0,0.98986254]
[1720031446772,0.00083,60484.0,60483.0,0.47985654]
[1720031446979,0.166162,60484.0,60483.0,0.22549654]
[1720031447394,0.496827,60484.0,60483.0,0.22549654]
[1720031447998,0.496827,60484.0,60483.0,0.23949654]
[1720031448362,0.827492,60484.0,60483.0,0.22549654]
[1720031449004,0.827492,60484.0,60483.0,0.22539654]
[1720031449208,0.827492,60484.0,60483.0,0.25329654]
[1720031449559,0.827492,60484.0,60483.0,0.23929654]
[1720031450330,1.158157,60484.0,60483.0,0.1600988]
[1720031451268,1.158157,60484.0,60483.0,0.1740988]
[1720031451478,1.158157,60484.0,60483.0,0.1880988]
[1720031452068,1.158157,60484.0,60483.0,0.1740988]
[1720031452551,1.158157,60484.0,60483.0,0.1739988]
[1720031452789,1.158157,60484.0,60483.0,0.1599988]
[1720031452790,1.22860648,60484.0,60483.0,0.1599988]
[1720031452996,1.22860648,60484.0,60483.0,0.1739988]
[1720031453168,1.22860648,60484.0,60483.0,0.1809988]
[1720031453570,1.22860648,60484.0,60483.0,0.1739988]
[1720031453771,1.55927148,60484.0,60483.0,0.1739988]
[1720031454195,1.55927148,60484.0,60483.0,0.1759988]
[1720031454422,1.55927148,60484.0,60483.0,0.1619988]
[1720031454695,1.55927148,60484.0,60483.0,0.1599988]
[1720031454916,1.55927148,60484.0,60483.0,0.1699988]
[1720031455102,1.57939307,60484.0,60483.0,0.01]
[1720031455320,1.157541,60473.0,60472.0,0.456224]
[1720031455544,1.157541,60473.0,60472.0,0.6165228]
[1720031456176,1.157441,60473.0,60472.0,0.6165228]
[1720031456645,1.157341,60473.0,60472.0,0.6165228]
[1720031457258,1.157241,60473.0,60472.0,0.1702988]
[1720031457405,1.157141,60473.0,60472.0,0.1702988]
[1720031457804,1.157041,60473.0,60472.0,0.1702988]
[1720031458191,1.157041,60473.0,60472.0,0.1842988]
[1720031459880,1.157041,60473.0,60472.0,0.024]
[1720031459881,1.76763608,60473.0,60472.0,0.024]
[1720031460051,2.19836208,60473.0,60472.0,0.024]
[1720031461019,2.19836208,60473.0,60472.0,0.014]
[1720031461235,2.19867366,60473.0,60472.0,0.014]
[1720031461649,2.20167366,60473.0,60472.0,0.014]
[1720031461851,2.20167366,60473.0,60466.0,0.000913]
[1720031461852,1.157653,60467.0,60466.0,0.000913]
[1720031462054,1.157653,60467.0,60466.0,0.1612118]
[1720031463844,1.157753,60467.0,60466.0,0.1612118]
[1720031464496,1.157753,60467.0,60466.0,0.1722118]
[1720031464707,1.157753,60467.0,60466.0,0.1762118]
[1720031466037,1.488511,60467.0,60466.0,0.1762118]
[1720031466318,1.49266048,60467.0,60466.0,0.1762118]
[1720031467237,1.488511,60467.0,60466.0,0.1762118]
[1720031469591,1.488411,60467.0,60466.0,0.1762118]
[1720031473078,1.157653,60467.0,60466.0,0.21840954]
[1720031473295,1.157653,60467.0,60466.0,0.31610954]
[1720031474030,1.233453,60467.0,60466.0,0.31610954]
[1720031474587,1.233453,60467.0,60466.0,0.2739118]
[1720031475581,1.233453,60467.0,60466.0,0.31610954]
[1720031475784,1.233553,60467.0,60466.0,0.31610954]
[1720031475994,1.157753,60467.0,60466.0,0.31620954]
[1720031476138,1.233553,60467.0,60466.0,0.31620954]
[1720031476537,0.0002,60467.0,60466.0,0.60499154]
[1720031476845,0.0002,60467.0,60466.0,0.46260954]
[1720031477155,0.330734,60472.0,60466.0,0.36490954]
[1720031477363,0.330734,60472.0,60471.0,0.04219774]
[1720031477565,0.330734,60472.0,60471.0,0.20249654]
[1720031477809,0.826833,60472.0,60471.0,0.20249654]
[1720031479179,0.826833,60472.0,60471.0,0.42999654]
[1720031479180,0.496099,60472.0,60471.0,0.42999654]
[1720031479404,0.496099,60472.0,60471.0,0.44199654]
[1720031481180,0.496099,60472.0,60471.0,0.44699654]
[1720031482687,0.496099,60472.0,60471.0,0.44689654]
[1720031483277,0.826833,60472.0,60471.0,0.44689654]
[1720031483932,0.902633,60472.0,60471.0,0.44689654]
[1720031484246,0.571899,60472.0,60471.0,0.44689654]
[1720031485017,0.496099,60472.0,60471.0,0.44689654]
[1720031488819,0.496199,60472.0,60471.0,0.44689654]
[1720031489786,0.496199,60472.0,60471.0,0.44679654]
[1720031496235,0.496199,60472.0,60471.0,0.1771988]
[1720031496236,0.826933,60472.0,60471.0,0.1771988]
[1720031496440,0.902733,60472.0,60471.0,0.1771988]
[1720031496981,0.92241375,60472.0,60471.0,0.1771988]
[1720031497183,0.92251375,60472.0,60471.0,0.1771988]
[1720031497396,0.9225156,60472.0,60471.0,0.1771988]
[1720031498338,0.9225156,60472.0,60471.0,0.21929654]
[1720031498544,0.9225156,60472.0,60471.0,0.1771988]
[1720031498873,0.9225156,60472.0,60471.0,0.21929654]
[1720031500809,0.92263118,60472.0,60471.0,0.21929654]
[1720031501014,0.84683118,60472.0,60471.0,0.21929654]
[1720031501162,0.92263118,60472.0,60471.0,0.21929654]
[1720031501998,1.25336518,60472.0,60471.0,0.1771988]
[1720031504168,1.25331351,60472.0,60471.0,0.1771988]
[1720031504710,1.17751351,60472.0,60471.0,0.1771988]
[1720031504969,1.25331351,60472.0,60471.0,0.1781118]
[1720031505168,1.233567,60472.0,60471.0,0.1781118]
[1720031507123,1.17759774,60472.0,60471.0,0.1781118]
[1720031507251,1.25339774,60472.0,60471.0,0.22020954]
[1720031507449,1.25339774,60472.0,60471.0,0.1781118]
[1720031507674,0.59192974,60472.0,60471.0,0.22020954]
[1720031507906,0.59192974,60472.0,60471.0,0.1781118]
[1720031508115,0.59192974,60472.0,60471.0,0.22020954]
[1720031508464,0.51612974,60472.0,60471.0,0.22020954]
[1720031511203,0.02003074,60472.0,60471.0,0.93481454]
[1720031511408,0.0002,60472.0,60471.0,1.06361454]
[1720031511605,0.0002,60472.0,60471.0,1.39435154]
[1720031512230,0.0002,60472.0,60471.0,1.72508854]
[1720031512433,0.0002,60472.0,60471.0,1.72008854]
[1720031512635,0.0002,60472.0,60471.0,1.70808854]
[1720031513446,0.0002,60472.0,60471.0,1.72208854]
[1720031514707,0.0002,60472.0,60471.0,1.73308854]
[1720031515147,0.0002,60472.0,60471.0,1.71908854]
[1720031515446,0.0002,60472.0,60471.0,1.70808854]
[1720031515657,0.0002,60472.0,60471.0,1.72208854]
[1720031515810,0.0002,60472.0,60471.0,1.66028854]
[1720031516007,0.0002,60472.0,60471.0,1.73608854]
[1720031517745,0.0002,60472.0,60471.0,2.03598854]
[1720031518249,0.0002,60472.0,60471.0,2.05602476]
[1720031519898,0.0002,60472.0,60471.0,1.42538776]
[1720031520543,0.0002,60472.0,60471.0,1.75612476]
[1720031522171,0.0002,60472.0,60471.0,2.35602476]
[1720031522625,0.0002,60472.0,60471.0,2.38918476]
[1720031522865,0.0002,60472.0,60471.0,2.71992176]
[1720031523086,0.00083,60484.0,60483.0,1.12127474]
[1720031523313,0.00083,60484.0,60483.0,1.71104454]
[1720031525432,0.00083,60484.0,60483.0,1.72504454]
[1720031525937,0.00083,60484.0,60483.0,1.73904454]
[1720031527868,0.00083,60484.0,60483.0,1.66324454]
[1720031528113,0.00083,60484.0,60483.0,1.66314454]
[1720031528344,0.00083,60484.0,60483.0,1.73894454]
[1720031529022,0.00083,60484.0,60483.0,1.73884454]
[1720031529889,0.00083,60484.0,60483.0,1.66304454]
[1720031530341,0.00083,60484.0,60483.0,1.66314454]
[1720031531522,0.00083,60484.0,60483.0,1.66324454]
[1720031532183,0.00093,60484.0,60483.0,1.66324454]
[1720031533143,0.00103,60484.0,60483.0,1.66324454]
[1720031533347,0.00103,60484.0,60483.0,1.73904454]
[1720031534802,0.00103,60484.0,60483.0,1.74739454]
[1720031535226,0.00103,60484.0,60483.0,1.76762774]
[1720031535415,0.00103,60484.0,60483.0,1.75362774]
[1720031535607,0.00103,60484.0,60483.0,1.73962774]
[1720031535813,0.00103,60484.0,60483.0,1.75362774]
[1720031536118,0.00103,60484.0,60483.0,1.76762774]
[1720031537148,0.00103,60484.0,60483.0,1.69274074]
[1720031537920,0.00103,60484.0,60483.0,1.66274074]
[1720031538122,0.00103,60484.0,60483.0,1.33206974]
[1720031541430,0.00103,60484.0,60483.0,1.00139874]
[1720031543261,0.00103,60484.0,60483.0,1.36206974]
[1720031547027,0.00103,60484.0,60483.0,1.33206974]
[1720031547478,0.00103,60484.0,60483.0,0.1977618]
[1720031547479,0.620127,60484.0,60483.0,0.1977618]
[1720031547693,0.79327648,60484.0,60483.0,0.029113]
[1720031547897,1.05763874,60484.0,60483.0,0.029113]
[1720031548203,1.374557,60484.0,60483.0,0.1894118]
[1720031548378,1.46410476,60484.0,60483.0,0.1894118]
[1720031548875,1.46410476,60484.0,60483.0,0.1754118]
[1720031549034,1.46410476,60484.0,60483.0,0.1834118]
[1720031549035,1.05763976,60484.0,60483.0,0.1834118]
[1720031549235,1.13343976,60484.0,60483.0,0.1834118]
[1720031549433,1.46410476,60484.0,60483.0,0.1754118]
[1720031549646,1.46410476,60484.0,60483.0,0.1844118]
[1720031550247,1.46410476,60484.0,60483.0,0.1704118]
[1720031550469,1.46410476,60484.0,60483.0,0.1714118]
[1720031550470,1.46510476,60484.0,60483.0,0.1714118]
[1720031551351,1.46510476,60484.0,60483.0,0.1734118]
[1720031552196,1.46510457,60484.0,60483.0,0.1734118]
[1720031554752,1.46510457,60484.0,60483.0,0.013113]
[1720031554753,1.80001929,60484.0,60483.0,0.013113]
[1720031554900,1.73385332,60484.0,60483.0,0.013113]
[1720031555106,2.04760175,60484.0,60483.0,0.013113]
[1720031555916,1.74760175,60484.0,60483.0,0.013113]
[1720031556478,1.73385332,60484.0,60483.0,0.013113]
[1720031556680,1.74760271,60484.0,60483.0,0.013113]
[1720031557788,1.86130271,60484.0,60483.0,0.013113]
[1720031558044,1.91590269,60484.0,60483.0,0.013113]
[1720031558485,1.91600269,60484.0,60483.0,0.013113]
[1720031559007,1.91510269,60484.0,60483.0,0.001113]